bitfinex-derivatives/quotes_ETHF0:USTF0_20241229
["timestamp","ask_amount","ask_price","bid_price","bid_amount"]
[1735482612941,0.8523,3381.4,3381.3,0.49681]
[1735482613742,1.14849,3381.4,3381.3,0.49681]
[1735482615738,0.8523,3381.4,3381.3,0.79301]
[1735482618545,1.14849,3381.4,3381.3,0.49681]
[1735482622044,1.14849,3381.4,3381.3,0.79301]
[1735482622245,1.14849,3381.4,3381.3,0.49681]
[1735482623150,0.8523,3381.4,3380.9,3.2078]
[1735482623353,0.29621,3381.2,3381.0,0.29622]
[1735482623745,0.29621,3381.2,3381.1,0.29622]
[1735482624141,0.8523,3381.4,3380.9,3.2078]
[1735482624344,0.29622,3381.1,3381.0,0.29622]
[1735482625454,0.8523,3381.4,3381.3,0.2962]
[1735482625648,5.50802269,3381.7,3381.6,0.29617]
[1735482625848,2.30022269,3381.7,3381.6,0.29617]
[1735482626450,2.30022269,3381.7,3381.6,41.09617]
[1735482627956,2.30022269,3382.8,3382.4,0.2961]
[1735482628247,2.30022269,3382.8,3382.0,4.4308]
[1735482628449,3.2078,3382.7,3382.1,0.29612]
[1735482628852,0.8429,3382.4,3382.0,3.2078]
[1735482629056,0.29613,3382.1,3382.0,3.2078]
[1735482629655,3.2078,3382.2,3381.7,0.8011]
[1735482629854,3.2078,3382.2,3381.6,1.223]
[1735482630156,3.50392,3382.2,3381.6,1.223]
[1735482630451,3.50392,3382.2,3382.0,0.29614]
[1735482630953,1.6573,3382.4,3382.1,0.29613]
[1735482631158,1.6573,3382.4,3381.7,3.2078]
[1735482631359,1.6573,3382.4,3382.3,0.29611]
[1735482633556,3.2078,3382.6,3382.5,0.29609]
[1735482635259,0.44569562,3382.6,3382.5,0.29609]
[1735482636959,0.44569562,3382.6,3382.5,3.50389]
[1735482637353,0.44569562,3382.6,3382.5,4.33499]
[1735482638667,0.29614,3382.0,3381.7,4.62921565]
[1735482638960,3.2078,3382.1,3381.7,4.62921565]
[1735482639164,0.8795,3381.9,3381.7,4.62921565]
[1735482639365,0.44569562,3381.8,3381.7,4.62921565]
[1735482640260,0.74184562,3381.8,3381.7,4.62921565]
[1735482640762,0.29619,3381.4,3381.3,3.2078]
[1735482641263,0.44569562,3381.4,3380.9,5.2831]
[1735482641461,1.1032,3381.3,3380.9,5.2831]
[1735482641855,0.29621,3381.2,3380.9,4.0601]
[1735482642259,0.44569562,3381.1,3380.9,4.0601]
[1735482642463,0.29622,3381.0,3380.9,3.2078]
[1735482642957,0.74191562,3381.1,3380.9,3.2078]
[1735482643167,3.65349562,3381.1,3380.4,40.8]
[1735482643470,0.44569562,3380.8,3380.3,3.2078]
[1735482643777,0.29626,3380.6,3380.3,3.2078]
[1735482643968,0.44569562,3380.8,3380.3,44.0078]
[1735482644170,0.29628,3380.4,3380.3,44.0078]
[1735482644470,0.44569562,3380.4,3380.3,3.2078]
[1735482644974,0.29627,3380.5,3380.3,3.2078]
[1735482645169,0.43012678,3380.4,3380.3,3.2078]
[1735482646583,0.43012678,3380.4,3379.7,0.8471]
[1735482646584,0.05,3379.8,3379.4,3.98852376]
[1735482646775,0.29642,3378.8,3378.6,12.60743106]
[1735482646974,0.29642,3378.8,3376.9,25.18904471]
[1735482646975,0.29643,3378.6,3378.5,18.55688698]
[1735482647275,0.72655678,3378.6,3378.5,11.79731698]
[1735482647468,5.43012678,3378.6,3378.3,8.79903588]
[1735482647671,5.43012678,3378.6,3378.1,17.09642291]
[1735482647870,3.50427,3378.2,3378.1,12.8740073]
[1735482648177,3.93439678,3378.2,3378.1,6.05619082]
[1735482648365,3.93439678,3378.2,3376.7,0.93081265]
[1735482648366,16.1736565,3378.2,3378.0,4.60212983]
[1735482648566,3.50439,3376.9,3376.7,0.93081265]
[1735482648771,4.4858,3376.8,3376.7,2.65e-06]
[1735482649171,0.29669,3375.7,3374.4,3.2078]
[1735482649369,3.2078,3375.7,3375.3,5.9176]
[1735482649575,3.2078,3375.7,3375.2,29.6388102]
[1735482649576,8.2078,3375.7,3375.2,29.6388102]
[1735482649873,3.2078,3375.3,3375.2,0.0108102]
[1735482650175,3.2078,3375.3,3375.1,5.9176]
[1735482650475,0.71591966,3375.2,3374.8,5.9176]
[1735482650671,0.29679,3374.6,3374.3,0.89032704]
[1735482650872,3.2078,3374.4,3374.3,0.89032704]
[1735482651175,3.2078,3374.9,3374.4,29.632]
[1735482651475,3.2078,3374.5,3374.4,29.632]
[1735482651772,3.2078,3375.0,3374.2,3.2078]
[1735482652076,3.2078,3375.4,3374.6,3.2078]
[1735482652271,3.30289528,3375.6,3375.1,0.53641484]
[1735482652467,3.2078,3375.2,3374.4,1.397]
[1735482652665,3.2078,3374.6,3374.3,1.549]
[1735482652866,1.397,3374.5,3372.3,3.2078]
[1735482653078,0.29694,3372.9,3372.6,1.549]
[1735482653369,4.53247345,3372.9,3372.8,3.2078]
[1735482653568,3.2078,3374.1,3372.8,4.7568]
[1735482653774,3.2078,3374.1,3373.2,4.7568]
[1735482653968,3.2078,3374.1,3373.3,1.549]
[1735482653969,0.29686,3373.8,3373.3,1.549]
[1735482654170,8.69145181,3374.0,3373.6,3.2078]
[1735482654372,8.98829181,3374.0,3373.6,1.549]
[1735482654575,0.29682,3374.3,3374.0,1.549]
[1735482654772,3.2078,3374.7,3374.0,4.7568]
[1735482655173,3.2078,3374.7,3374.5,1.549]
[1735482655478,3.2078,3374.7,3374.1,20.7852957]
[1735482655774,0.29684,3374.0,3373.3,3.2078]
[1735482655974,3.2078,3374.3,3373.3,3.2078]
[1735482656176,3.2078,3374.3,3373.4,40.8]
[1735482656477,3.2078,3374.3,3373.4,61.5852957]
[1735482656680,2.24854654,3373.7,3373.4,61.5852957]
[1735482657175,2.24854654,3373.7,3373.3,3.2078]
[1735482657376,7.24854654,3373.7,3372.9,3.2078]
[1735482657673,7.24854654,3373.7,3371.0,0.26335664]
[1735482657674,0.29696,3372.7,3372.5,3.2078]
[1735482657879,3.2078,3373.1,3372.5,3.2078]
[1735482658077,0.29695,3372.8,3372.5,3.2078]
[1735482658376,3.2078,3373.6,3372.5,3.2078]
[1735482658679,0.27432501,3374.7,3373.5,3.2078]
[1735482658680,3.2078,3374.0,3373.5,3.2078]
[1735482659272,3.2078,3374.4,3373.5,3.2078]
[1735482659576,3.35672407,3374.0,3373.5,5.0]
[1735482659781,3.35672407,3374.0,3373.8,0.29685]
[1735482660085,2.23607246,3374.6,3373.7,3.2078]
[1735482660277,2.23607246,3374.6,3374.2,3.50462]
[1735482660475,2.8908486,3374.6,3374.2,3.2078]
[1735482660682,2.8908486,3374.6,3374.3,0.29681]
[1735482660683,2.23607246,3374.6,3374.3,0.29681]
[1735482660875,2.8908486,3374.6,3374.2,3.2078]
[1735482661075,2.23607246,3374.6,3374.2,3.2078]
[1735482661276,2.23607246,3374.6,3374.5,0.29679]
[1735482661574,2.23607246,3375.2,3374.7,0.29678]
[1735482661778,2.23607246,3375.2,3374.6,3.2078]
[1735482662074,2.23607246,3375.2,3375.1,0.29674]
[1735482662272,2.23607246,3375.2,3374.7,40.8]
[1735482662475,2.8908486,3375.2,3374.8,17.72534163]
[1735482662772,3.2078,3375.0,3374.4,17.42857163]
[1735482663077,3.2078,3375.0,3374.3,0.8238]
[1735482663272,8.86257614,3375.0,3374.3,0.8238]
[1735482663478,0.29678,3374.7,3374.3,0.8238]
[1735482663679,0.29679,3374.6,3374.3,0.8238]
[1735482664181,0.65477614,3374.6,3374.3,0.8238]
[1735482664379,0.65477614,3374.6,3374.5,0.29679]
[1735482664579,3.2078,3375.4,3375.2,0.29673]
[1735482664880,3.2078,3375.4,3375.1,0.29674]
[1735482664881,3.86257614,3375.4,3375.1,0.29674]
[1735482665771,3.86257614,3375.4,3375.3,0.29672]
[1735482665977,3.2078,3375.9,3375.0,8.2078]
[1735482666177,3.2078,3375.9,3375.6,0.2967]
[1735482666379,3.86257614,3375.9,3375.6,0.2967]
[1735482666680,3.86257614,3375.9,3375.6,17.42857163]
[1735482666879,3.2078,3376.3,3375.5,3.2078]
[1735482667075,3.2078,3376.3,3375.7,0.29668]
[1735482667280,3.86257614,3376.3,3375.5,3.2078]
[1735482667482,0.29665,3376.2,3375.6,0.29669]
[1735482667877,0.95142614,3376.2,3375.6,0.29669]
[1735482668084,0.29668,3375.9,3375.7,17.42857163]
[1735482668282,0.65477614,3376.2,3375.7,17.42857163]
[1735482668680,0.95142614,3376.2,3375.7,17.72526163]
[1735482669177,0.2967,3375.6,3375.5,2.55302386]
[1735482669380,0.049,3375.8,3374.4,0.2968]
[1735482669381,3.2078,3375.8,3374.4,0.2968]
[1735482669587,0.2968,3374.5,3374.1,3.2078]
[1735482669784,0.29677,3374.8,3374.1,3.2078]
[1735482669983,3.2078,3374.9,3374.4,0.2968]
[1735482670289,0.29675,3375.1,3374.5,3.50459]
[1735482670582,3.50453,3375.2,3374.7,0.29677]
[1735482670776,3.2078,3375.7,3374.9,3.2078]
[1735482670981,0.29674,3375.2,3374.7,0.29677]
[1735482671288,3.2078,3375.8,3374.6,3.2078]
[1735482671486,3.2078,3375.3,3374.6,0.29679]
[1735482671687,3.2078,3375.3,3374.5,3.2078]
[1735482671887,3.2078,3375.3,3374.8,0.29676]
[1735482672092,3.2078,3375.3,3374.3,0.8452]
[1735482672482,0.29674,3375.1,3374.5,0.29679]
[1735482672784,0.29674,3375.1,3374.3,0.8452]
[1735482672984,3.2078,3374.6,3374.3,0.8452]
[1735482673892,0.29669,3375.7,3375.2,0.29673]
[1735482674092,0.29674,3375.1,3375.0,1.453]
[1735482674285,3.2078,3375.3,3374.5,3.2078]
[1735482674485,0.29679,3374.6,3374.5,3.2078]
[1735482674787,0.29678,3374.7,3374.5,3.2078]
[1735482675293,3.2078,3374.9,3374.3,0.8452]
[1735482675294,0.29679,3374.6,3374.3,0.8452]
[1735482675885,3.2078,3374.9,3374.3,0.8452]
[1735482676188,3.2078,3374.5,3373.8,1.453]
[1735482676492,3.2078,3373.9,3373.4,40.8]
[1735482676790,3.2078,3373.5,3373.4,0.29689]
[1735482677188,0.29688,3373.6,3373.1,0.29691]
[1735482677388,3.2078,3373.7,3373.1,0.29692]
[1735482677685,3.2078,3373.3,3372.7,0.845]
[1735482677890,3.50471,3373.3,3372.8,0.29694]
[1735482678279,0.29691,3373.2,3372.8,0.29694]
[1735482678590,3.50471,3373.3,3372.7,41.645]
[1735482678784,3.2078,3373.3,3372.7,41.645]
[1735482678991,0.29691,3373.2,3372.7,41.94195]
[1735482679297,3.2078,3372.8,3372.1,1.453]
[1735482679587,2.35452,3374.5,3372.1,1.453]
[1735482679588,3.2078,3373.2,3372.9,0.29693]
[1735482679890,3.2078,3373.2,3373.0,0.29692]
[1735482680294,3.2078,3373.2,3372.9,0.29693]
[1735482680587,0.29695,3372.7,3372.4,3.2078]
[1735482680787,3.2078,3372.5,3372.1,0.297]
[1735482680993,3.2078,3372.5,3371.7,5.704]
[1735482681185,3.2078,3372.5,3372.4,0.29698]
[1735482681585,3.2078,3372.5,3371.8,12.34977163]
[1735482681888,3.2078,3372.5,3372.4,0.29698]
[1735482682385,3.2078,3372.5,3371.9,12.34977163]
[1735482682583,3.50478,3372.5,3371.9,53.14977163]
[1735482682789,3.2078,3372.5,3372.2,0.29699]
[1735482683089,3.2078,3372.5,3371.9,53.14977163]
[1735482683293,3.2078,3372.5,3372.0,0.29701]
[1735482683483,3.2078,3372.5,3372.3,0.29698]
[1735482683683,3.2078,3372.5,3371.9,12.34977163]
[1735482683883,0.29699,3372.4,3371.9,12.64679163]
[1735482684085,0.29699,3372.4,3371.8,0.29702]
[1735482684288,3.50478,3372.5,3371.7,3.2078]
[1735482684489,3.2078,3372.5,3371.7,3.2078]
[1735482684688,3.2078,3372.5,3372.1,0.297]
[1735482684890,3.2078,3372.5,3371.7,3.2078]
[1735482685291,3.2078,3372.0,3371.8,0.29703]
[1735482685493,3.2078,3372.0,3371.7,0.29703]
[1735482685995,3.2078,3372.0,3371.3,12.34977163]
[1735482686191,3.2078,3372.0,3370.9,0.8376]
[1735482686490,3.2078,3371.0,3369.8,3.2078]
[1735482686691,3.2078,3370.6,3369.8,3.2078]
[1735482686886,3.50494,3370.6,3369.8,3.2078]
[1735482687087,3.50494,3370.6,3369.9,0.29719]
[1735482687283,8.50494,3370.6,3369.5,12.34977163]
[1735482687492,8.50494,3370.6,3368.3,3.2078]
[1735482687493,8.2078,3370.6,3368.3,3.2078]
[1735482687686,3.2078,3369.2,3368.3,3.2078]
[1735482687988,3.2078,3369.2,3368.3,44.0078]
[1735482688286,3.2078,3369.9,3369.1,3.2078]
[1735482688489,3.2078,3369.4,3368.7,3.2078]
[1735482688797,3.2078,3370.3,3369.1,3.2078]
[1735482688996,3.2078,3370.3,3368.1,53.44737163]
[1735482688997,3.2078,3370.3,3369.7,3.2078]
[1735482689191,2.52823769,3370.2,3369.4,0.29724]
[1735482689492,2.52823769,3370.2,3368.4,3.2078]
[1735482689493,3.2078,3369.8,3368.4,3.2078]
[1735482689790,3.2078,3369.1,3368.4,3.2078]
[1735482689995,3.2078,3368.5,3367.3,3.2078]
[1735482690195,3.50517,3368.1,3367.4,0.29741]
[1735482690490,3.50517,3368.1,3367.6,0.29739]
[1735482690491,3.2078,3368.1,3367.6,0.29739]
[1735482690685,3.2078,3368.1,3367.7,0.29739]
[1735482690887,3.2078,3368.1,3364.3,0.93081265]
[1735482690888,3.2078,3366.8,3364.3,0.93081265]
[1735482691095,3.2078,3365.3,3364.3,0.93081265]
[1735482691294,3.2078,3365.7,3365.2,0.29758]
[1735482691487,3.2078,3366.1,3365.2,0.29758]
[1735482691683,0.29755,3366.0,3365.0,0.29763]
[1735482691888,3.2078,3365.2,3364.7,3.50538]
[1735482692089,3.2078,3365.7,3365.4,0.29758]
[1735482692296,3.2078,3365.7,3365.3,0.29758]
[1735482692484,3.2078,3365.7,3365.0,0.29762]
[1735482692685,3.2078,3367.0,3365.6,3.50538]
[1735482692893,3.2078,3367.0,3366.0,3.2078]
[1735482693100,3.2078,3367.0,3366.4,0.29758]
[1735482693392,3.2078,3366.5,3366.0,3.50538]
[1735482693595,3.2078,3366.5,3366.0,3.2078]
[1735482693986,3.2078,3366.1,3364.8,3.2078]
[1735482694292,5.0,3366.5,3362.4,7.814]
[1735482694293,3.2078,3365.5,3365.0,0.29758]
[1735482694497,3.2078,3365.5,3364.6,0.29766]
[1735482694692,3.2078,3365.5,3365.1,0.29758]
[1735482695098,3.2078,3365.5,3365.1,0.29762]
[1735482695393,8.2078,3365.5,3364.4,12.34977163]
[1735482695596,8.2078,3365.5,3364.5,0.29758]
[1735482695597,3.2078,3365.1,3364.5,0.29758]
[1735482696000,3.2078,3365.1,3365.0,0.00949701]
[1735482696500,0.29766,3364.8,3364.3,0.93081265]
[1735482696701,3.2078,3364.4,3364.3,0.93081265]
[1735482697798,3.2078,3364.4,3364.3,1.52608265]
[1735482698095,3.2078,3365.4,3364.3,47.02839265]
[1735482698290,0.8121,3366.4,3364.3,47.02839265]
[1735482698291,3.2078,3365.8,3365.4,0.2976]
[1735482698700,3.2078,3365.8,3365.2,12.34977163]
[1735482698900,3.2078,3365.8,3365.7,0.29757]
[1735482699196,3.2078,3365.8,3365.6,0.29757]
[1735482699702,3.2078,3365.8,3364.9,3.2078]
[1735482699998,3.2078,3365.3,3364.4,0.29768]
[1735482700202,3.2078,3364.8,3364.3,41.73081265]
[1735482700398,3.2078,3365.3,3364.8,0.29765]
[1735482700697,3.2078,3365.3,3364.3,49.93861265]
[1735482700900,3.2078,3365.3,3365.2,0.29761]
[1735482701199,3.2078,3366.0,3365.3,0.29761]
[1735482701399,3.2078,3366.0,3365.2,3.2078]
[1735482701600,3.2078,3366.0,3365.3,49.82432954]
[1735482702291,3.2078,3366.0,3365.3,9.02432954]
[1735482702597,3.2078,3366.0,3365.5,0.29758]
[1735482702805,3.50535,3366.0,3365.2,3.50541]
[1735482703104,8.2078,3366.0,3365.2,3.2078]
[1735482703599,0.29755,3365.9,3365.2,3.2078]
[1735482703794,3.2078,3366.0,3365.2,3.2078]
[1735482704899,3.2078,3366.0,3365.1,9.02432954]
[1735482704900,3.50536,3365.9,3365.3,0.2976]
[1735482705093,3.2078,3365.9,3365.4,0.29759]
[1735482705293,0.29756,3365.8,3365.2,0.29761]
[1735482705499,3.2078,3365.9,3365.1,12.23212954]
[1735482705695,3.2078,3365.9,3365.8,0.29756]
[1735482705895,3.2078,3365.9,3365.7,0.29756]
[1735482706090,0.29752,3366.3,3365.8,0.29756]
[1735482706293,3.2078,3366.8,3366.3,0.29752]
[1735482706488,3.2078,3366.8,3365.3,0.74402]
[1735482706489,3.2078,3366.8,3365.9,3.2078]
[1735482706895,3.2078,3366.8,3366.0,9.02432954]
[1735482707095,0.2975,3366.5,3365.9,3.50535]
[1735482707294,3.2078,3366.8,3365.9,3.50535]
[1735482707496,3.2078,3366.8,3365.9,3.2078]
[1735482707692,8.2078,3366.8,3365.9,3.2078]
[1735482707895,3.2078,3366.0,3365.3,1.6345]
[1735482708300,0.29756,3365.9,3365.4,9.02432954]
[1735482708605,3.2078,3366.0,3365.4,9.02432954]
[1735482709509,3.2078,3366.0,3365.6,0.29758]
[1735482709703,3.2078,3366.0,3365.3,0.804]
[1735482709903,3.2078,3365.4,3364.7,3.2078]
[1735482710205,0.29769,3364.4,3363.6,3.2078]
[1735482710403,3.50549,3364.4,3364.3,0.25305265]
[1735482710609,3.2078,3364.4,3362.5,3.2078]
[1735482710903,3.2078,3364.4,3362.1,0.8715]
[1735482710904,3.2078,3364.3,3363.9,0.25305265]
[1735482711103,3.5055,3364.3,3363.9,0.55078265]
[1735482711406,0.29766,3364.8,3364.3,0.29769]
[1735482711608,3.2078,3364.9,3364.1,3.2078]
[1735482711904,3.2078,3364.9,3364.2,12.23212954]
[1735482712107,3.2078,3364.9,3364.7,0.25305265]
[1735482712403,3.2078,3364.9,3363.5,43.2926]
[1735482712404,3.2078,3364.9,3364.0,3.2078]
[1735482712801,3.50545,3364.9,3364.0,3.2078]
[1735482713001,3.50545,3364.9,3364.4,0.29768]
[1735482713203,3.2078,3364.9,3364.2,0.2977]
[1735482713402,3.2078,3364.5,3364.0,0.82604876]
[1735482713709,3.2078,3364.5,3364.4,0.29769]
[1735482713906,1.6852,3365.9,3364.4,3.2078]
[1735482713907,3.2078,3365.5,3364.4,3.2078]
[1735482714107,3.2078,3365.5,3364.5,2.5272]
[1735482714305,3.2078,3365.5,3365.3,0.2976]
[1735482714711,3.2078,3365.5,3365.1,0.29762]
[1735482715109,3.2078,3365.5,3364.6,0.8235]
[1735482715309,3.2078,3365.5,3365.2,0.29761]
[1735482715614,3.2078,3365.5,3364.7,0.29766]
[1735482715815,3.2078,3365.5,3365.1,0.29762]
[1735482716915,3.2078,3365.5,3365.2,0.29761]
[1735482717211,3.2078,3365.5,3365.3,0.2976]
[1735482717407,3.2078,3365.5,3364.6,0.8235]
[1735482717715,3.2078,3365.5,3365.2,0.29761]
[1735482717918,3.2078,3365.5,3365.3,0.29761]
[1735482718211,3.2078,3365.5,3365.2,0.29761]
[1735482718413,3.2078,3365.5,3364.7,45.8]
[1735482718615,3.2078,3365.5,3364.6,0.8235]
[1735482718809,0.29764,3365.0,3364.6,0.8235]
[1735482719003,3.2078,3364.7,3364.6,0.8235]
[1735482719210,3.2078,3364.7,3364.6,0.29767]
[1735482719511,3.2078,3365.1,3365.0,0.29763]
[1735482719815,3.2078,3365.1,3364.8,0.29765]
[1735482720114,3.50543,3365.1,3364.6,0.29766]
[1735482720308,3.2078,3365.1,3364.3,3.2078]
[1735482720507,3.2078,3366.6,3366.2,0.29752]
[1735482720811,3.2078,3366.3,3365.7,1.783]
[1735482721115,3.2078,3366.4,3365.5,3.2078]
[1735482721321,0.29758,3365.6,3365.5,3.2078]
[1735482721510,0.29757,3365.8,3365.5,3.2078]
[1735482721717,8.2078,3366.4,3365.5,3.2078]
[1735482722114,3.2078,3366.0,3365.1,3.2078]
[1735482722418,0.29759,3365.5,3365.1,3.2078]
[1735482722811,3.2078,3366.0,3365.3,0.2976]
[1735482723014,3.2078,3366.0,3365.5,3.2078]
[1735482723215,0.29758,3365.6,3365.1,3.2078]
[1735482723524,0.29764,3365.0,3364.7,3.2078]
[1735482723713,3.2078,3365.6,3364.7,3.2078]
[1735482723714,0.29765,3364.8,3364.7,3.2078]
[1735482724012,0.29766,3364.7,3364.2,0.2977]
[1735482724211,3.2078,3365.2,3364.1,4.0747]
[1735482724414,0.29762,3365.1,3364.7,0.29766]
[1735482724613,0.29765,3364.9,3364.4,0.29768]
[1735482724812,0.29765,3364.9,3364.1,4.0747]
[1735482724813,0.29768,3364.5,3364.1,4.0747]
[1735482725016,0.29767,3364.7,3364.2,0.2977]
[1735482725322,3.2078,3365.2,3364.1,9.0747]
[1735482725509,1.77,3367.4,3365.0,3.2078]
[1735482725816,0.29757,3365.7,3365.3,3.50541]
[1735482726119,0.29755,3365.9,3365.5,0.29758]
[1735482726416,0.29757,3365.8,3365.4,0.29759]
[1735482726620,0.29757,3365.7,3365.4,0.29759]
[1735482726917,0.29756,3365.8,3365.5,0.29759]
[1735482727111,3.2078,3366.0,3365.3,3.2078]
[1735482727313,3.2078,3366.0,3364.9,3.2078]
[1735482727521,3.50535,3366.0,3365.3,3.2078]
[1735482727715,3.2078,3366.0,3365.3,3.2078]
[1735482727910,3.2078,3366.0,3365.3,8.2078]
[1735482728114,3.2078,3366.0,3365.3,6.6450088]
[1735482728515,3.2078,3366.0,3365.9,0.29755]
[1735482729122,3.2078,3366.5,3365.7,3.95173]
[1735482729322,3.2078,3366.5,3366.4,0.29751]
[1735482729710,3.2078,3366.5,3366.4,5.29751]
[1735482729916,3.33559821,3367.8,3366.5,0.74376]
[1735482730124,3.2078,3367.7,3366.7,3.2078]
[1735482730315,3.2078,3367.7,3366.6,0.8674]
[1735482730513,0.1249912,3367.7,3367.3,3.2078]
[1735482730818,3.33559821,3367.8,3367.6,0.2974]
[1735482731018,3.33559821,3367.8,3367.3,3.2078]
[1735482731519,3.2078,3368.1,3367.0,3.2078]
[1735482731717,3.3327912,3368.1,3367.9,0.29737]
[1735482731921,3.3327912,3368.1,3368.0,0.29737]
[1735482731922,3.2078,3368.1,3368.0,0.29737]
[1735482732117,3.3327912,3368.1,3367.0,3.2078]
[1735482732426,3.2078,3367.7,3366.8,4.0195]
[1735482732725,3.2078,3367.2,3365.9,1.77]
[1735482732919,0.29752,3366.3,3365.9,1.77]
[1735482733118,0.29754,3366.0,3365.9,1.77]
[1735482733423,3.50534,3366.1,3365.9,1.77]
[1735482733625,0.29754,3366.0,3365.9,1.77]
[1735482733827,3.50534,3366.1,3365.9,1.77]
[1735482734025,3.2078,3366.1,3365.2,0.8643]
[1735482734226,3.2078,3366.1,3365.2,5.8643]
[1735482734426,3.2078,3366.1,3365.8,0.29756]
[1735482734723,3.2078,3366.1,3365.3,1.77]
[1735482734921,3.3327912,3366.1,3365.8,0.29756]
[1735482735521,3.3327912,3366.1,3366.0,0.29754]
[1735482735732,3.2078,3366.1,3366.0,0.29754]
[1735482736021,3.33559821,3366.2,3366.1,0.29754]
[1735482736222,3.26724304,3366.4,3366.3,0.29752]
[1735482736422,2.76724304,3366.4,3366.3,5.29752]
[1735482736620,2.76724304,3366.4,3366.3,0.29752]
[1735482736931,8.77723103,3367.2,3367.1,0.29745]
[1735482737120,8.90222223,3367.2,3367.1,0.29745]
[1735482737320,8.77723103,3367.2,3367.1,0.29745]
[1735482737926,3.65402034,3367.2,3367.1,0.29745]
[1735482738229,3.65402034,3367.2,3366.5,3.2078]
[1735482738230,3.77901154,3367.2,3366.5,3.2078]
[1735482738429,0.29749,3366.7,3366.5,3.2078]
[1735482738627,3.77901154,3367.2,3366.5,3.2078]
[1735482738831,3.77901154,3367.2,3366.5,3.50529]
[1735482739031,8.90222223,3367.2,3366.5,3.2078]
[1735482739625,8.90222223,3367.2,3367.1,0.29745]
[1735482739819,8.90222223,3367.2,3366.5,3.2078]
[1735482740028,3.3327912,3367.2,3366.5,3.2078]
[1735482740227,3.50529,3366.6,3366.1,0.29753]
[1735482740435,3.2078,3366.6,3365.9,1.769]
[1735482740727,3.3327912,3366.6,3365.9,1.769]
[1735482740928,3.3327912,3366.6,3366.0,0.29754]
[1735482741131,0.29751,3366.4,3365.7,3.2078]
[1735482741329,0.29754,3366.1,3365.7,0.29756]
[1735482741529,3.50533,3366.2,3365.8,0.29756]
[1735482741726,3.6303212,3366.2,3365.8,0.29756]
[1735482741931,3.2078,3366.2,3365.4,1.769]
[1735482742130,3.2078,3366.2,3366.1,0.29754]
[1735482742333,3.3327912,3366.2,3365.4,1.769]
[1735482742528,3.6303212,3366.2,3365.8,0.29756]
[1735482742833,0.29756,3365.8,3365.5,0.29759]
[1735482743034,3.50536,3365.8,3365.5,0.29759]
[1735482743334,3.3327912,3365.8,3365.2,3.2078]
[1735482743929,3.2078,3365.8,3365.7,0.29757]
[1735482744527,3.6303612,3365.8,3365.2,3.2078]
[1735482744737,0.29757,3365.7,3365.4,0.29759]
[1735482744930,3.3327912,3365.8,3364.5,0.50551]
[1735482745135,3.2078,3365.1,3364.5,0.50551]
[1735482745335,3.2078,3365.6,3364.5,5.50551]
[1735482745639,0.2976,3365.4,3365.1,0.29762]
[1735482745823,0.2976,3365.4,3364.6,1.769]
[1735482745824,3.6303712,3365.6,3365.3,0.2976]
[1735482746028,3.3327912,3365.6,3364.8,3.2078]
[1735482746734,3.3327912,3365.6,3365.4,0.29759]
[1735482746932,3.3327912,3365.6,3364.8,3.2078]
[1735482747231,0.29759,3365.5,3365.1,0.29762]
[1735482747532,0.29759,3365.5,3364.5,0.50551]
[1735482747533,3.2078,3365.2,3364.5,0.50551]
[1735482747734,3.2078,3364.8,3364.5,0.80318]
[1735482747929,3.2078,3364.8,3364.5,0.50551]
[1735482748233,3.3327912,3364.8,3363.5,3.2078]
[1735482748534,3.2078,3364.5,3363.4,3.2078]
[1735482748723,0.1249912,3364.8,3363.2,1.77]
[1735482748724,3.2078,3364.1,3363.2,1.77]
[1735482748926,3.2078,3364.1,3364.0,0.29772]
[1735482749529,3.2078,3364.1,3364.0,7.06772]
[1735482749931,3.2078,3364.8,3364.7,0.29766]
[1735482751038,3.2078,3365.2,3365.0,0.29763]
[1735482751329,3.2078,3365.2,3364.6,1.711]
[1735482751532,0.29762,3365.1,3364.7,0.29765]
[1735482751726,3.6304112,3365.2,3364.8,0.29765]
[1735482751925,3.3327912,3365.2,3363.6,3.4504]
[1735482752139,3.2078,3364.6,3363.6,11.6582]
[1735482752434,3.2078,3364.1,3364.0,0.29772]
[1735482752738,3.2078,3364.1,3363.9,0.29773]
[1735482752935,3.3327912,3364.1,3363.4,1.711]
[1735482753139,3.2078,3364.1,3364.0,0.29772]
[1735482753736,3.2078,3364.1,3363.4,6.711]
[1735482753737,3.2078,3364.1,3363.9,0.29772]
[1735482753936,3.2078,3365.0,3363.9,3.2078]
[1735482754138,8.77723103,3365.4,3364.1,3.2078]
[1735482754341,3.2078,3365.0,3364.1,3.2078]
[1735482754730,0.29764,3364.9,3364.3,0.29769]
[1735482755029,3.2078,3363.4,3362.1,2.87445081]
[1735482755235,3.2078,3362.2,3361.9,7.7550398]
[1735482755442,0.2979,3362.0,3361.9,7.7550398]
[1735482755835,0.29792,3361.8,3361.1,11.27952484]
[1735482756037,3.2078,3361.3,3361.1,11.27952484]
[1735482756340,0.29797,3361.2,3361.1,10.61013484]
[1735482757339,3.2078,3361.3,3359.5,1.712]
[1735482757534,3.2078,3360.7,3360.3,0.29805]
[1735482757733,3.2078,3360.7,3359.8,8.2078]
[1735482757933,3.2078,3360.7,3359.9,40.8]
[1735482758134,3.2078,3360.7,3360.5,0.29802]
[1735482758343,3.2078,3360.7,3359.9,40.8]
[1735482758543,3.2078,3360.7,3359.9,45.8]
[1735482758837,3.2078,3360.7,3359.9,40.8]
[1735482759539,3.2078,3360.1,3359.3,3.2078]
[1735482759938,1.712,3361.8,3360.0,0.29807]
[1735482759939,3.2078,3360.7,3360.0,0.29807]
[1735482760134,3.2078,3360.6,3360.0,0.29807]